bitfinex/quotes_SOLUSD_20241123
["timestamp","ask_amount","ask_price","bid_price","bid_amount"]
[1732333382344,11.89075603,255.64,255.59,0.2]
[1732333382940,11.89075603,255.62,255.59,0.2]
[1732333384429,11.89075603,255.6,255.56,0.2]
[1732333384632,11.89075603,255.58,255.56,0.2]
[1732333385924,11.89075603,255.58,255.5,17.4145]
[1732333386128,11.89075603,255.56,255.5,17.4145]
[1732333386747,11.89075603,255.56,255.51,23.776884]
[1732333388847,11.89075603,255.54,255.51,0.2]
[1732333389736,11.89075603,255.52,255.51,0.2]
[1732333390433,11.89075603,255.52,255.42,17.4145]
[1732333391847,11.89075603,255.52,255.43,23.776884]
[1732333393631,7.97324986,255.56,255.43,23.776884]
[1732333393828,11.89075603,255.55,255.43,23.776884]
[1732333394056,11.89075603,255.55,255.43,23.976884]
[1732333395451,11.89075603,255.53,255.43,23.976884]
[1732333396749,7.61830419,255.53,255.43,23.976884]
[1732333397961,7.61830419,255.51,255.43,23.976884]
[1732333400158,7.61830419,255.49,255.43,0.2]
[1732333404246,7.61830419,255.47,255.43,0.2]
[1732333406157,7.61830419,255.47,255.36,17.2133]
[1732333406340,7.61830419,255.47,255.36,17.4133]
[1732333408770,7.74101681,255.51,255.36,17.4133]
[1732333408980,7.61830419,255.5,255.36,17.4133]
[1732333410971,7.61830419,255.5,255.37,23.776884]
[1732333412150,7.61830419,255.5,255.37,23.976884]
[1732333413649,16.1619,255.64,255.43,22.7483]
[1732333413857,7.61830419,255.59,255.43,22.9483]
[1732333414249,16.1619,255.64,255.43,22.9483]
[1732333414250,16.1619,255.64,255.43,25.4483]
[1732333414455,7.61830419,255.62,255.43,27.9483]
[1732333414774,7.61830419,255.62,255.45,2.5]
[1732333415072,7.61830419,255.62,255.43,27.9483]
[1732333415274,7.61830419,255.62,255.45,2.5]
[1732333415572,7.61830419,255.62,255.43,25.4483]
[1732333415955,7.61830419,255.6,255.43,25.4483]
[1732333416172,7.61830419,255.6,255.43,22.9483]
[1732333416482,7.61830419,255.54,255.43,22.9483]
[1732333416772,7.61830419,255.56,255.43,22.9483]
[1732333417966,7.61830419,255.56,255.44,23.776884]
[1732333421260,15.50409008,255.56,255.44,23.976884]
[1732333421970,7.61830419,255.56,255.44,23.976884]
[1732333428885,7.61830419,255.54,255.44,23.976884]
[1732333429085,7.61830419,255.52,255.44,23.976884]
[1732333433286,16.3153,255.6,255.44,23.976884]
[1732333433287,7.61830419,255.55,255.44,23.976884]
[1732333438569,7.61830419,255.55,255.44,0.2]
[1732333440066,7.61830419,255.55,255.44,23.976884]
[1732333445899,6.0424635,255.57,255.44,23.976884]
[1732333446192,6.0424635,255.61,255.44,23.976884]
[1732333446395,15.27360056,255.61,255.44,23.976884]
[1732333446594,7.61830419,255.59,255.44,23.976884]
[1732333449187,6.0424635,255.64,255.45,17.1648]
[1732333449388,12.15670591,255.66,255.45,17.1648]
[1732333449389,7.61830419,255.63,255.45,17.1648]
[1732333449603,7.61830419,255.66,255.48,6.4164]
[1732333449812,15.32541836,255.66,255.49,17.1648]
[1732333450007,7.61830419,255.64,255.49,17.1648]
[1732333451703,7.61830419,255.6,255.5,23.776884]
[1732333451885,7.61830419,255.6,255.5,23.976884]
[1732333452281,7.96438179,255.64,255.5,23.976884]
[1732333452602,7.61830419,255.61,255.5,23.976884]
[1732333453882,7.61830419,255.59,255.5,23.976884]
[1732333454381,7.61830419,255.57,255.5,23.976884]
[1732333454890,7.61830419,255.57,255.5,0.2]
[1732333455296,7.61830419,255.55,255.5,0.2]
[1732333456504,15.38700667,255.57,255.5,0.2]
[1732333456684,7.61830419,255.57,255.5,0.2]
[1732333458605,7.61830419,255.55,255.5,0.2]
[1732333461098,7.61830419,255.57,255.5,0.2]
[1732333462503,7.61830419,255.59,255.5,0.2]
[1732333463084,13.66076769,255.59,255.5,23.976884]
[1732333464114,7.61830419,255.59,255.5,23.976884]
[1732333464614,13.66076769,255.59,255.5,23.976884]
[1732333465809,6.0424635,255.58,255.5,23.976884]
[1732333466716,7.61830419,255.57,255.5,23.976884]
[1732333467206,7.61830419,255.57,255.5,0.2]
[1732333467394,7.61830419,255.55,255.5,0.2]
[1732333468788,7.61830419,255.57,255.5,0.2]
[1732333469188,13.66076769,255.57,255.5,0.2]
[1732333469414,7.61830419,255.57,255.5,0.2]
[1732333469598,13.66076769,255.57,255.5,0.2]
[1732333470609,7.61830419,255.57,255.5,0.2]
[1732333472009,7.61830419,255.57,255.5,23.976884]
[1732333472312,6.0424635,255.6,255.5,23.976884]
[1732333473093,13.66076769,255.61,255.5,23.976884]
[1732333473288,7.61830419,255.61,255.5,23.976884]
[1732333473996,13.66076769,255.61,255.5,23.976884]
[1732333474390,7.61830419,255.59,255.5,23.976884]
[1732333481792,13.66501161,255.62,255.5,23.976884]
[1732333481793,7.61830419,255.61,255.5,23.976884]
[1732333481992,7.62254811,255.62,255.5,23.976884]
[1732333482213,15.2408523,255.62,255.5,23.976884]
[1732333483314,6.0424635,255.64,255.51,6.8608]
[1732333483524,13.66076769,255.64,255.51,6.8608]
[1732333483821,6.0424635,255.64,255.51,6.8608]
[1732333484118,6.0424635,255.66,255.51,6.8608]
[1732333484300,6.0424635,255.66,255.51,7.0608]
[1732333484617,13.66076769,255.67,255.51,7.0608]
[1732333484819,7.61830419,255.67,255.51,7.0608]
[1732333486107,7.61830419,255.65,255.51,7.0608]
[1732333486308,13.84675945,255.68,255.52,23.776884]
[1732333486502,7.61830419,255.67,255.52,23.776884]
[1732333487299,7.61830419,255.67,255.52,23.976884]
[1732333493600,6.0424635,255.71,255.52,23.976884]
[1732333493810,7.61830419,255.66,255.52,23.976884]
[1732333498125,6.0424635,255.71,255.52,23.976884]
[1732333498126,7.61830419,255.64,255.52,0.2]
[1732333498304,7.61830419,255.61,255.52,0.2]
[1732333498816,7.61830419,255.63,255.52,0.2]
[1732333499408,7.61830419,255.63,255.52,23.976884]
[1732333499921,6.0424635,255.68,255.52,23.976884]
[1732333500126,7.61830419,255.64,255.52,23.976884]
[1732333503316,7.61830419,255.57,255.52,0.2]
[1732333504329,7.61830419,255.53,255.44,6.6697]
[1732333504530,30.47321676,255.58,255.44,6.6697]
[1732333504531,7.61830419,255.51,255.44,0.2]
[1732333506131,7.61830419,255.49,255.44,0.2]
[1732333507313,6.0424635,255.56,255.44,0.2]
[1732333507512,7.61830419,255.56,255.44,0.2]
[1732333510212,7.77814817,255.57,255.44,0.2]
[1732333510418,7.61830419,255.6,255.44,0.2]
[1732333513126,7.61830419,255.6,255.44,23.976884]
[1732333516440,7.61830419,255.58,255.44,23.976884]
[1732333516817,7.63563496,255.61,255.44,23.976884]
[1732333516818,7.61830419,255.54,255.44,23.976884]
[1732333517033,7.61830419,255.54,255.44,0.2]
[1732333517843,7.61830419,255.56,255.44,0.2]
[1732333518335,6.0424635,255.63,255.44,23.976884]
[1732333518542,7.75575195,255.64,255.44,23.976884]
[1732333518543,7.61830419,255.58,255.44,23.976884]
[1732333518742,7.61830419,255.56,255.44,23.976884]
[1732333520012,7.61830419,255.53,255.44,23.976884]
[1732333520241,7.61830419,255.5,255.44,0.2]
[1732333520428,7.61830419,255.48,255.44,0.2]
[1732333522132,7.61830419,255.46,255.38,0.2]
[1732333522340,7.61830419,255.42,255.32,6.7385]
[1732333523626,7.61830419,255.42,255.33,23.776884]
[1732333524321,7.61830419,255.46,255.33,23.776884]
[1732333525629,7.61830419,255.44,255.33,23.776884]
[1732333526216,7.94796922,255.51,255.33,23.776884]
[1732333526430,7.61830419,255.44,255.33,23.976884]
[1732333526834,7.61830419,255.46,255.33,23.976884]
[1732333527724,6.0424635,255.55,255.33,23.976884]
[1732333528020,7.61830419,255.47,255.33,23.976884]
[1732333531143,15.25914563,255.47,255.33,23.976884]
[1732333531846,7.61830419,255.45,255.33,23.976884]
[1732333534130,15.25914563,255.47,255.33,23.976884]
[1732333534338,7.61830419,255.47,255.33,23.976884]
[1732333535955,7.61830419,255.45,255.33,23.976884]
[1732333537458,7.61830419,255.43,255.33,23.976884]
[1732333540938,7.61830419,255.41,255.33,23.976884]
[1732333541641,7.61830419,255.43,255.33,23.976884]
[1732333543961,23.57302544,255.49,255.33,23.976884]
[1732333544260,7.61830419,255.46,255.33,23.976884]
[1732333545055,7.61830419,255.44,255.33,23.976884]
[1732333545760,23.57302544,255.49,255.33,23.976884]
[1732333545928,7.61830419,255.45,255.33,23.976884]
[1732333548566,23.57302544,255.49,255.33,0.2]
[1732333548736,7.61830419,255.44,255.33,0.2]
[1732333548940,23.57302544,255.49,255.33,0.2]
[1732333549141,7.61830419,255.45,255.33,0.2]
[1732333550061,7.61830419,255.45,255.33,23.976884]
[1732333551846,7.61830419,255.43,255.33,23.976884]
[1732333552641,23.57302544,255.49,255.33,23.976884]
[1732333552948,7.61830419,255.46,255.33,23.976884]
[1732333554786,7.61830419,255.44,255.33,23.976884]
[1732333555654,7.61830419,255.42,255.33,23.976884]
[1732333555863,7.61830419,255.39,255.33,0.2]
[1732333557764,7.61830419,255.39,255.31,16.9537]
[1732333557765,7.61830419,255.37,255.31,16.9537]
[1732333558656,7.61830419,255.37,255.2,0.2]
[1732333558857,7.61830419,255.35,255.2,0.2]
[1732333560387,7.61830419,255.31,255.2,0.2]
[1732333561657,7.61830419,255.33,255.2,0.2]
[1732333561853,16.4398,255.4,255.18,15.9056]
[1732333561854,7.61830419,255.26,255.18,15.9056]
[1732333562054,30.47321676,255.32,255.18,15.7056]
[1732333562055,7.61830419,255.24,255.18,15.7056]
[1732333563372,7.61830419,255.24,255.18,0.2]
[1732333563678,30.47321676,255.32,255.18,0.2]
[1732333563862,7.61830419,255.25,255.18,0.2]
[1732333566971,7.7919903,255.32,255.18,0.2]
[1732333567281,6.7336,255.35,255.18,0.2]
[1732333567579,7.61830419,255.3,255.18,0.2]
[1732333567750,7.61830419,255.32,255.2,23.776884]
[1732333569373,7.61830419,255.34,255.2,23.776884]
[1732333569873,7.61830419,255.34,255.21,15.7056]
[1732333570763,7.61830419,255.34,255.21,15.9056]
[1732333571493,7.66981005,255.4,255.21,15.9056]
[1732333571780,7.61830419,255.39,255.21,15.9056]
[1732333573055,16.4398,255.47,255.21,15.9056]
[1732333573358,7.61830419,255.42,255.24,23.776884]
[1732333574261,7.61830419,255.41,255.24,23.776884]
[1732333574468,7.61830419,255.41,255.24,23.976884]
[1732333575258,7.61830419,255.41,255.25,15.5493]
[1732333575462,7.72748602,255.47,255.25,15.5493]
[1732333575659,7.61830419,255.45,255.25,15.7493]
[1732333576770,7.97731284,255.52,255.28,23.776884]
[1732333576966,22.9794,255.54,255.3,15.5493]
[1732333577179,6.0424635,255.55,255.31,35.5493]
[1732333577485,7.61830419,255.55,255.37,15.5493]
[1732333577782,7.61830419,255.55,255.37,15.7493]
[1732333578468,15.59406571,255.55,255.37,15.7493]
[1732333578665,7.61830419,255.55,255.37,15.7493]
[1732333578982,7.61830419,255.56,255.37,15.7493]
[1732333579157,30.66432576,255.66,255.37,15.7493]
[1732333579353,7.61830419,255.56,255.37,15.7493]
[1732333579585,7.61830419,255.54,255.37,15.7493]
[1732333579765,7.61830419,255.56,255.37,15.7493]
[1732333581189,20.0,255.65,255.37,15.7493]
[1732333581363,7.61830419,255.58,255.39,15.5493]
[1732333581565,7.61830419,255.58,255.39,15.7493]
[1732333582072,30.66432576,255.66,255.41,15.5493]
[1732333582073,7.61830419,255.6,255.41,15.5493]
[1732333582574,7.61830419,255.58,255.41,15.5493]
[1732333585488,15.31948209,255.58,255.41,15.5493]
[1732333585694,7.61830419,255.58,255.41,15.5493]
[1732333585886,30.47321676,255.71,255.44,15.5493]
[1732333586071,7.61830419,255.64,255.44,18.2493]
[1732333586394,7.61830419,255.67,255.49,6.2751]
[1732333586584,7.61830419,255.69,255.5,15.5493]
[1732333586892,7.61830419,255.69,255.5,15.7493]
[1732333587191,7.61830419,255.67,255.5,15.7493]
[1732333588679,11.89053736,255.66,255.5,15.7493]
[1732333589772,11.89053736,255.66,255.51,23.776884]
[1732333590589,11.89053736,255.64,255.5,15.7493]
[1732333590792,11.89053736,255.62,255.5,15.7493]
[1732333591093,11.89053736,255.64,255.5,15.7493]
[1732333592088,11.89053736,255.64,255.51,23.776884]
[1732333595374,11.89053736,255.64,255.51,23.976884]
[1732333595569,19.7023227,255.64,255.51,23.976884]
[1732333596995,7.81178534,255.64,255.51,23.976884]
[1732333597284,11.89053736,255.64,255.51,23.976884]
[1732333601474,19.84495033,255.64,255.51,23.976884]
[1732333602493,11.89053736,255.64,255.51,23.976884]
[1732333602692,11.89053736,255.66,255.51,23.976884]
[1732333602872,11.89053736,255.68,255.52,16.5933]
[1732333603197,11.89053736,255.68,255.54,6.6973]
[1732333604084,11.89053736,255.68,255.55,23.776884]
[1732333604277,11.89053736,255.68,255.56,16.5933]
[1732333604478,11.89053736,255.68,255.57,23.776884]
[1732333605985,30.67271868,255.78,255.57,23.776884]
[1732333605986,11.89053736,255.66,255.57,23.776884]
[1732333606687,11.89053736,255.71,255.57,23.776884]
[1732333606688,11.89053736,255.64,255.57,23.776884]
[1732333607088,11.89053736,255.66,255.57,23.776884]
[1732333607490,11.89053736,255.66,255.57,23.976884]
[1732333608699,7.61015045,255.66,255.57,23.976884]
[1732333609202,7.61015045,255.64,255.57,23.976884]
[1732333613379,7.61015045,255.62,255.57,0.2]
[1732333613692,7.61015045,255.58,255.5,16.5933]
[1732333613897,7.61015045,255.58,255.5,16.7933]
[1732333615581,7.61015045,255.56,255.51,23.776884]
[1732333618100,22.0419,255.68,255.51,23.776884]
[1732333618101,7.61015045,255.6,255.51,23.776884]
[1732333618681,29.8483259,255.68,255.51,23.976884]
[1732333618682,7.8064259,255.68,255.51,23.976884]
[1732333619007,22.9674,255.74,255.51,23.976884]
[1732333619186,22.9674,255.8,255.55,2.5]
[1732333619505,7.61015045,255.75,255.56,15.7849]
[1732333619892,7.61015045,255.73,255.56,15.7849]
[1732333620201,7.61015045,255.73,255.56,15.9849]
[1732333620600,30.86113564,255.8,255.56,15.9849]
[1732333620903,11.8854862,255.72,255.56,15.9849]
[1732333622105,11.8854862,255.7,255.57,23.776884]
[1732333625011,11.8854862,255.68,255.57,23.976884]
[1732333625306,11.8854862,255.66,255.57,23.976884]
[1732333628588,11.8854862,255.7,255.57,23.976884]
[1732333629711,11.8854862,255.72,255.57,23.976884]
[1732333630410,11.8854862,255.69,255.57,23.976884]
[1732333630604,6.0424635,255.78,255.57,23.976884]
[1732333630807,11.8854862,255.7,255.57,23.976884]
[1732333632291,6.0424635,255.76,255.57,23.976884]
[1732333632613,11.8854862,255.7,255.57,23.976884]
[1732333632817,11.8854862,255.66,255.57,0.2]
[1732333633292,11.8854862,255.64,255.57,0.2]
[1732333634318,11.8854862,255.62,255.57,0.2]
[1732333635106,11.8854862,255.6,255.57,0.2]
[1732333635424,11.8854862,255.62,255.57,0.2]
[1732333635797,11.8854862,255.62,255.57,23.976884]
[1732333637403,11.8854862,255.6,255.57,0.2]
[1732333638409,19.69787837,255.62,255.57,0.2]
[1732333638607,11.8854862,255.62,255.57,0.2]
[1732333639297,11.8854862,255.64,255.57,0.2]
[1732333639498,7.82018586,255.66,255.57,0.2]
[1732333639499,11.8854862,255.66,255.57,0.2]
[1732333645523,6.0424635,255.73,255.57,0.2]
[1732333645824,11.8854862,255.7,255.58,15.8613]
[1732333646120,11.8854862,255.7,255.58,16.0613]
[1732333646305,11.8854862,255.71,255.58,16.0613]
[1732333647404,11.8854862,255.73,255.58,16.0613]
[1732333648119,11.8854862,255.73,255.59,23.776884]
[1732333648811,11.8854862,255.71,255.59,23.776884]
[1732333649421,7.98198478,255.76,255.59,23.776884]
[1732333649630,11.8854862,255.72,255.59,23.976884]
[1732333650620,7.60647694,255.72,255.59,23.976884]
[1732333652222,6.0424635,255.77,255.59,23.976884]
[1732333652428,7.60647694,255.77,255.61,6.3173]
[1732333655721,7.60647694,255.77,255.61,6.5173]
[1732333656310,6.0424635,255.82,255.62,16.2031]
[1732333656614,36.02352781,255.9,255.62,16.4031]
[1732333656615,7.60647694,255.8,255.62,16.4031]
[1732333657925,7.60647694,255.73,255.62,16.4031]
[1732333659222,7.60647694,255.7,255.62,16.4031]
[1732333659607,7.60647694,255.68,255.62,16.4031]
[1732333663511,7.60647694,255.72,255.63,23.776884]
[1732333663717,7.60647694,255.74,255.63,23.776884]
[1732333664030,7.60647694,255.74,255.63,23.976884]
[1732333665832,7.60647694,255.7,255.63,23.976884]
[1732333666817,6.0424635,255.81,255.63,23.976884]
[1732333667108,7.60647694,255.78,255.63,23.976884]
[1732333667626,7.60647694,255.76,255.63,23.976884]
[1732333670229,7.60647694,255.74,255.63,23.976884]
[1732333670725,11.88361881,255.72,255.63,0.2]
[1732333672020,11.88361881,255.72,255.63,23.976884]
[1732333674031,11.88361881,255.68,255.63,0.2]
[1732333674528,11.88361881,255.7,255.63,0.2]
[1732333675633,11.88361881,255.72,255.63,23.976884]
[1732333676014,11.88361881,255.74,255.63,23.976884]
[1732333676334,11.88361881,255.76,255.63,23.976884]
[1732333680035,11.88361881,255.74,255.63,23.976884]
[1732333680616,6.0424635,255.82,255.63,23.976884]
[1732333680833,11.88361881,255.76,255.63,23.976884]
[1732333682221,11.88361881,255.78,255.63,23.976884]
[1732333684138,7.64939212,255.84,255.65,15.6393]
[1732333684339,11.88361881,255.8,255.65,15.8393]
[1732333684746,11.88361881,255.78,255.66,23.776884]
[1732333685042,11.88361881,255.78,255.66,23.976884]
[1732333687241,11.88361881,255.82,255.66,23.976884]
[1732333687454,11.88361881,255.8,255.66,23.976884]
[1732333690630,7.60229159,255.79,255.66,23.976884]
[1732333691722,7.60229159,255.77,255.66,23.976884]
[1732333692241,7.60229159,255.75,255.66,23.976884]
[1732333693350,7.60229159,255.77,255.66,23.976884]
[1732333693846,7.60229159,255.8,255.66,23.976884]
[1732333695251,6.0424635,255.89,255.69,16.0812]
[1732333695452,7.60229159,255.85,255.69,16.2812]
[1732333695628,7.60229159,255.81,255.69,16.2812]
[1732333696944,7.60229159,255.83,255.7,23.776884]
[1732333699140,5.60229159,255.83,255.7,23.776884]
[1732333699861,7.60229159,255.75,255.7,0.2]
[1732333700941,7.60229159,255.73,255.7,0.2]
[1732333703149,6.0424635,255.79,255.7,0.2]
[1732333703327,7.60229159,255.76,255.7,0.2]
[1732333703533,6.0424635,255.81,255.7,0.2]
[1732333703733,7.60229159,255.76,255.7,0.2]
[1732333706554,7.60229159,255.82,255.71,15.288]
[1732333707557,7.60229159,255.84,255.71,15.288]
[1732333708254,15.56465509,255.84,255.72,23.776884]
[1732333708447,7.60229159,255.84,255.72,23.776884]
[1732333709355,34.50050591,255.89,255.72,23.776884]
[1732333709356,7.60229159,255.82,255.72,23.776884]
[1732333709657,7.60229159,255.82,255.72,23.976884]
[1732333716558,7.60229159,255.84,255.72,23.976884]
[1732333718038,7.60229159,255.82,255.72,23.976884]
[1732333720660,6.0424635,255.84,255.72,23.976884]
[1732333720965,7.60229159,255.82,255.72,23.976884]
[1732333727039,6.0424635,255.83,255.72,23.976884]
[1732333727346,13.64475509,255.84,255.72,23.976884]
[1732333728355,7.60229159,255.82,255.72,23.976884]
[1732333729145,13.64475509,255.82,255.72,23.976884]
[1732333729344,7.60229159,255.82,255.72,23.976884]
[1732333730057,13.64475509,255.82,255.72,23.976884]
[1732333730377,7.60229159,255.82,255.72,23.976884]
[1732333730543,7.60229159,255.8,255.71,15.288]
[1732333730741,7.60229159,255.74,255.65,15.1571]
[1732333731054,7.60229159,255.72,255.65,15.3571]
[1732333734771,7.60229159,255.74,255.65,15.3571]
[1732333736170,6.0424635,255.77,255.65,15.3571]
[1732333736374,7.60229159,255.74,255.65,15.3571]
[1732333738450,7.60229159,255.72,255.65,15.3571]
[1732333738760,7.60229159,255.66,255.59,15.0911]
[1732333738962,7.60229159,255.64,255.59,15.2911]
[1732333741672,6.0424635,255.72,255.53,15.0911]
[1732333741673,7.60229159,255.62,255.53,15.0911]
[1732333741881,7.60229159,255.62,255.53,15.1911]
[1732333742408,7.60229159,255.6,255.53,15.1911]
[1732333744870,7.60229159,255.62,255.53,15.1911]
[1732333745776,14.26393127,255.69,255.53,15.1911]
[1732333745777,14.26393127,255.69,255.54,23.776884]
[1732333746073,7.60229159,255.66,255.54,23.876884]
[1732333747504,7.60229159,255.62,255.54,0.1]
[1732333748582,14.26393127,255.69,255.49,6.0164]
[1732333748583,7.60229159,255.58,255.49,6.1164]
[1732333748789,7.10229159,255.58,255.49,6.1164]
[1732333752672,7.60229159,255.6,255.49,6.1164]
[1732333753285,7.60229159,255.64,255.5,23.776884]
[1732333753470,27.80846202,255.68,255.5,23.776884]
[1732333753471,7.60229159,255.66,255.5,23.876884]
[1732333753673,27.9537635,255.77,255.51,15.0911]
[1732333753872,7.60229159,255.7,255.51,15.1911]
[1732333754497,7.60229159,255.68,255.51,15.1911]
[1732333755194,7.60229159,255.66,255.52,23.776884]
[1732333757175,20.0,255.74,255.52,23.776884]
[1732333757502,7.60229159,255.69,255.52,23.776884]
[1732333757671,7.60229159,255.69,255.52,23.876884]
[1732333758273,7.60229159,255.69,255.52,23.376884]
[1732333759690,7.60229159,255.65,255.52,23.376884]
[1732333760797,7.60229159,255.67,255.52,23.376884]
[1732333761780,7.60229159,255.69,255.52,23.376884]
[1732333762382,7.60229159,255.67,255.52,23.376884]
[1732333764702,27.69098052,255.74,255.52,23.376884]
[1732333764703,7.60229159,255.65,255.52,23.376884]
[1732333767904,27.69098052,255.74,255.52,23.376884]
[1732333767905,7.60229159,255.67,255.52,23.376884]
[1732333768300,27.69098052,255.74,255.52,23.376884]
[1732333768485,7.60229159,255.68,255.52,23.376884]
[1732333769306,7.60229159,255.7,255.53,15.4039]
[1732333769680,7.60229159,255.7,255.53,15.5039]
[1732333769882,15.29327211,255.74,255.55,15.4039]
[1732333770196,7.60229159,255.74,255.55,15.5039]
[1732333771678,7.60229159,255.72,255.55,15.5039]
[1732333773902,7.76238339,255.77,255.55,15.5039]
[1732333774198,7.60229159,255.76,255.57,15.4039]
[1732333774403,7.60229159,255.74,255.57,15.4039]
[1732333775401,7.60229159,255.76,255.57,15.4039]
[1732333775578,7.60229159,255.78,255.57,18.0039]
[1732333775788,7.60229159,255.79,255.59,16.6062]
[1732333776181,7.60229159,255.79,255.6,6.0891]
[1732333776400,7.60229159,255.79,255.61,16.6062]
[1732333776690,7.66035016,255.83,255.61,16.7062]
[1732333776691,7.60229159,255.81,255.61,16.7062]
[1732333778983,6.0424635,255.85,255.62,6.0891]
[1732333779195,6.0424635,255.86,255.63,23.776884]
[1732333779402,7.60229159,255.78,255.63,23.776884]
[1732333779702,7.60229159,255.78,255.63,23.876884]
[1732333782290,36.45162986,255.84,255.63,0.1]
[1732333782291,7.60229159,255.76,255.63,0.1]
[1732333783588,7.60229159,255.76,255.63,23.876884]
[1732333784114,6.0424635,255.83,255.63,23.876884]
[1732333784415,7.60229159,255.79,255.63,23.876884]
[1732333784586,6.0424635,255.85,255.63,23.876884]
[1732333784901,7.60229159,255.8,255.63,23.876884]
[1732333788421,20.0,255.87,255.65,6.0891]
[1732333788596,7.60229159,255.82,255.66,16.6062]
[1732333790386,7.60229159,255.81,255.67,23.776884]
[1732333791005,27.78337333,255.87,255.67,23.776884]
[1732333791006,7.60229159,255.79,255.67,23.776884]
[1732333791210,7.60229159,255.79,255.67,23.876884]
[1732333792105,27.78337333,255.87,255.69,40.383084]
[1732333792402,7.60229159,255.84,255.69,40.483084]
[1732333793402,7.78337333,255.87,255.69,40.483084]
[1732333793706,7.60229159,255.83,255.69,40.483084]
[1732333794997,20.0,255.9,255.69,40.483084]
[1732333795322,7.60229159,255.84,255.69,40.483084]
[1732333795520,7.60229159,255.82,255.69,40.483084]
[1732333799401,7.60229159,255.84,255.69,40.483084]
[1732333801513,7.60229159,255.82,255.69,40.483084]
[1732333803826,7.60229159,255.8,255.69,40.483084]
[1732333805033,21.3316635,255.89,255.69,40.483084]
[1732333805233,7.60229159,255.81,255.69,40.483084]
[1732333806315,21.3316635,255.89,255.69,40.483084]
[1732333806516,7.60229159,255.84,255.69,40.483084]
[1732333807834,21.3316635,255.89,255.69,40.483084]
[1732333808032,7.60229159,255.86,255.69,40.483084]
[1732333809412,7.60229159,255.84,255.69,40.483084]
[1732333812819,15.2892,255.89,255.69,40.483084]
[1732333813132,7.60229159,255.84,255.69,40.483084]
[1732333814329,19.99390603,255.9,255.69,40.483084]
[1732333814531,7.60229159,255.84,255.69,40.483084]
[1732333816115,7.60229159,255.8,255.69,40.483084]
[1732333816315,7.60229159,255.8,255.69,16.7062]
[1732333817541,7.60229159,255.8,255.7,23.776884]
[1732333819336,7.60229159,255.82,255.7,23.776884]
[1732333820832,7.60229159,255.82,255.7,23.876884]
[1732333823945,7.60229159,255.8,255.7,23.876884]
[1732333830245,7.60229159,255.82,255.7,23.876884]
[1732333834028,13.69603504,255.85,255.7,23.876884]
[1732333834242,7.60229159,255.85,255.7,23.876884]
[1732333834433,13.69603504,255.85,255.7,23.876884]
[1732333834632,13.69603504,255.85,255.71,15.613]
[1732333834836,7.60229159,255.85,255.71,15.613]
[1732333835030,6.09374345,255.86,255.71,15.613]
[1732333835234,7.60229159,255.86,255.71,15.713]
[1732333835450,13.69603504,255.86,255.71,15.713]
[1732333837030,7.60229159,255.82,255.71,15.713]
[1732333838026,13.69603504,255.84,255.72,23.776884]
[1732333838463,6.09374345,255.83,255.72,23.776884]
[1732333838749,13.69603504,255.84,255.72,23.776884]
[1732333838930,6.09374345,255.83,255.72,23.876884]
[1732333840955,6.09374345,255.84,255.72,23.876884]
[1732333841739,7.60229159,255.83,255.72,23.876884]
[1732333842328,13.69603504,255.83,255.72,23.876884]
[1732333842726,7.60229159,255.81,255.72,0.1]
[1732333844056,7.60229159,255.79,255.72,0.1]
[1732333845542,6.09374345,255.8,255.72,0.1]
[1732333845857,13.69603504,255.81,255.72,0.1]
[1732333847244,6.09374345,255.82,255.72,0.1]
[1732333849127,6.09374345,255.84,255.72,0.1]
[1732333850550,6.09374345,255.84,255.72,23.876884]
[1732333853330,6.09374345,255.85,255.72,23.876884]
[1732333854154,6.09374345,255.86,255.72,23.876884]
[1732333854944,13.69603504,255.87,255.72,23.876884]
[1732333856042,6.09374345,255.86,255.72,23.876884]
[1732333858249,13.69603504,255.86,255.72,23.876884]
[1732333858755,7.60229159,255.84,255.72,23.876884]
[1732333859056,13.69603504,255.84,255.72,23.876884]
[1732333859359,7.60229159,255.82,255.72,23.876884]
[1732333859753,13.69603504,255.84,255.72,23.876884]
[1732333860269,6.09374345,255.84,255.72,23.876884]